lending/lending_fUSD_20241007
["ID","MTS","AMOUNT","RATE_DAILY","PERIOD"]
[340005648,1728321048625,-270.0,0.00015141,2]
[340005649,1728321048635,-263.829835,0.000154,2]
[340005650,1728321048645,-151.0,0.000154,2]
[340005651,1728321048654,-7037.94197123,0.00015549,2]
[340005652,1728321048664,-1251.3833266,0.0001556,2]
[340005653,1728321048674,-538.27659695,0.0001556,2]
[340005654,1728321048683,-511.37,0.00015655,2]
[340005655,1728321048692,-150.23271,0.00015657,2]
[340005656,1728321048701,-167.786,0.00015946,2]
[340005657,1728321048709,-514.556,0.00015947,2]
[340005658,1728321048719,-9999.99,0.00016116,2]
[340005659,1728321048728,-180.79,0.00016438,2]
[340005660,1728321048738,-150.71,0.00016438,2]
[340005661,1728321048747,-2021.21,0.000165,2]
[340005662,1728321048756,-151.0,0.000167,2]
[340005663,1728321048766,-151.0,0.000167,2]
[340005664,1728321048775,-400.0,0.00017,2]
[340005665,1728321048784,-668.5,0.00017214,2]
[340005666,1728321048794,-151.0,0.000173,2]
[340005667,1728321048803,-626.0,0.00017371,2]
[340005668,1728321048812,-559.0,0.00017371,2]
[340005669,1728321048822,-150.0,0.00017371,2]
[340005670,1728321048831,-934.0,0.00017371,2]
[340005671,1728321048840,-1906.0,0.00017371,2]
[340005672,1728321048850,-554.0,0.00017371,2]
[340005673,1728321048860,-3353.0,0.00017371,2]
[340005674,1728321048869,-808.0,0.00017371,2]
[340005675,1728321048878,-1910.0,0.00017371,2]
[340005676,1728321048888,-1149.0,0.00017401,2]
[340005677,1728321048898,-275.263,0.00017401,2]
[340005678,1728321048908,-5877.0,0.00017401,2]
[340005679,1728321048918,-13514.0,0.00017401,2]
[340005680,1728321048929,-150.71,0.00017466,2]
[340005681,1728321048939,-109941.060301,0.00017473,2]
[340005682,1728321048948,-6291.6337345,0.00017473,2]
[340005683,1728321048958,-151.0,0.00017485,2]
[340005684,1728321048968,-150.0,0.00017485,2]
[340005685,1728321048978,-150.0,0.00017485,2]
[340005686,1728321048987,-150.0,0.00017485,2]
[340005687,1728321048997,-150.0,0.00017485,2]
[340005688,1728321049006,-269.495,0.00017485,2]
[340005689,1728321049015,-153.771,0.00017485,2]
[340005691,1728321049025,-150.0,0.00017485,2]
[340005692,1728321049034,-229.876,0.00017485,2]
[340005694,1728321049043,-263.069,0.00017485,2]
[340005696,1728321049052,-281.157,0.00017485,2]
[340005698,1728321049062,-150.35,0.00017485,2]
[340005700,1728321049071,-249.428,0.00017485,2]
[340005701,1728321049081,-201.993,0.00017485,2]
[340005703,1728321049090,-200.95,0.00017485,2]
[340005705,1728321049099,-449.0,0.00017485,2]
[340005707,1728321049108,-811.0,0.00017485,2]
[340005709,1728321049117,-1434.332,0.00017485,2]
[340005710,1728321049126,-239.13,0.00017592,2]
[340005712,1728321049135,-1106.601,0.00017672,2]
[340005714,1728321049145,-679.25207,0.00018,2]
[340005716,1728321049154,-8770.25899639,0.00018072,2]
[340005718,1728321049163,-158.19,0.00018372,2]
[340005719,1728321049173,-150.71,0.00018493,2]
[340005721,1728321049182,-450.0,0.00019,2]
[340005723,1728321049191,-500.0,0.00019,2]
[340005725,1728321049201,-1131.31482901,0.00019186,2]
[340005727,1728321049210,-668.5,0.00019463,2]
[340005729,1728321049219,-150.71,0.00019521,2]
[340005731,1728321049229,-500.0,0.0002,2]
[340005733,1728321049239,-626.0,0.00020371,2]
[340005735,1728321049248,-559.0,0.00020371,2]
[340005737,1728321049259,-150.0,0.00020371,2]
[340005739,1728321049269,-934.0,0.00020371,2]
[340005741,1728321049278,-1427.63707111,0.00020371,2]
[340005744,1728321049301,-259.80321216,0.00020371,2]
[340005748,1728321049324,-218.55971673,0.00020371,2]
[340005750,1728321049334,-291.76107111,0.00020371,2]
[340005762,1728321206666,200.0,0.0001,2]
[340005763,1728321209149,620.033907,0.00010205,2]
[340005764,1728321423467,1351.82188849,0.00010189,2]
[340005765,1728321470154,1533.92605859,0.00010188,2]
[340005769,1728322080069,750.0,0.0001,2]
[340005770,1728322090220,3426.73335414,0.00013,4]
[340005789,1728322203306,312.16029851,1e-05,15]
[340005806,1728322231432,-322.38932731,0.0001069,2]
[340005807,1728322231492,-272.47,0.0001069,2]
[340005808,1728322231503,-2599.99999999,0.0001069,2]
[340005809,1728322231514,-679.50666919,0.0001069,2]
[340005810,1728322231552,-3789.95049017,0.0001069,2]
[340005811,1728322231614,-14955.19811334,0.0001069,2]
[340005812,1728322231626,-150.0,0.00010899,2]
[340005813,1728322231635,-170.65171344,0.000109,2]
[340005814,1728322231643,-900.45207265,0.000109,2]
[340005815,1728322231652,-2403.57981758,0.000109,2]
[340005816,1728322231662,-403.37797324,0.000109,2]
[340005817,1728322231671,-223.43,0.00010959,2]
[340005819,1728322231681,-162.78,0.00010959,2]
[340005821,1728322231690,-151.847696,0.00010973,2]
[340005823,1728322231699,-502.69720497,0.00010999,2]
[340005825,1728322231710,-54375.98540391,0.00011,2]
[340005827,1728322231725,-8023.37232094,0.00011,2]
[340005840,1728322237510,-6828.33643,0.000109,2]
[340005841,1728322237519,-1626.01083806,0.00011,2]
[340005842,1728322237530,-24598.67570169,0.00011,2]
[340005843,1728322237541,-570.23685725,0.00011,2]
[340005844,1728322237552,-23333.39692139,0.00011,2]
[340005845,1728322237629,-1362.14790047,0.00011,2]
[340005846,1728322237640,-1553.4252,0.00011,2]
[340005847,1728322237690,-4015.072646,0.00011,2]
[340005848,1728322237702,-1220.78618031,0.00011,2]
[340005849,1728322237713,-2856.54381969,0.00011,2]
[340005850,1728322237724,-394.12782113,0.00011,2]
[340005851,1728322237735,-2289.53902093,0.00011,2]
[340005852,1728322237746,-3006.44051846,0.00011,2]
[340005853,1728322237757,-7442.804616,0.00011,2]
[340005854,1728322237768,-449.59669731,0.00011,2]
[340005855,1728322237780,-2126.69832764,0.00011,2]
[340005856,1728322237791,-726.22550044,0.00011,2]
[340005857,1728322237802,-2564.7511365,0.00011,2]
[340005858,1728322237814,-463.04150386,0.00011,2]
[340005859,1728322237825,-504.46416423,0.00011,2]
[340005860,1728322237835,-1879.79073718,0.00011,2]
[340005861,1728322237846,-448.7075297,0.00011,2]
[340005862,1728322237857,-590.62314607,0.00011,2]
[340005863,1728322237875,-720.62291816,0.00011,2]
[340005864,1728322237886,-845.57482597,0.00011,2]
[340005865,1728322237896,-5403.3429348,0.00011,2]
[340005866,1728322237907,-14986.1079083,0.00011,2]
[340005867,1728322237918,-19584.17613878,0.00011,2]
[340005868,1728322237929,-974.16207443,0.00011,2]
[340005869,1728322237939,-399.08923112,0.00011,2]
[340005870,1728322237950,-12186.12208425,0.00011,2]
[340005871,1728322237964,-10898.63709996,0.00011,2]
[340005872,1728322237975,-585.41820824,0.00011,2]
[340005894,1728322242584,-1845.17754164,0.00011,2]
[340005902,1728322245463,-5798.71108862,0.00011,2]
[340005903,1728322245474,-151110.94300006,0.00011,2]
[340005904,1728322245523,-273.18016177,0.00011,2]
[340005905,1728322245533,-949.65,0.00011,2]
[340005906,1728322245584,-637.73394124,0.00011,2]
[340005907,1728322245594,-10321.57815525,0.00011,2]
[340005908,1728322245605,-6138.4358,0.00011,2]
[340005909,1728322245643,-3807.00947184,0.00011,2]
[340005910,1728322245654,-263.86078829,0.00011,2]
[340005911,1728322245706,-6134.45000001,0.00011,2]
[340005912,1728322245717,-10376.08951432,0.00011,2]
[340006046,1728322503083,312.16029851,1e-05,15]
[340006047,1728322588534,320.0,0.000121,5]
[340006048,1728322868926,542.48,8.723e-05,2]
[340006049,1728323223023,250.0,0.00010173,2]
[340006050,1728323256690,200.0,0.00010173,2]
[340006051,1728323338006,1000.0,0.00010203,2]
[340006063,1728323426057,526.18,8.438e-05,2]
[340006064,1728323431598,-9058.09230667,0.00010234,2]
[340006065,1728323431664,-1356.19569135,0.00010234,2]
[340006066,1728323431675,-951.22869428,0.00010234,2]
[340006067,1728323431687,-984.09450233,0.00010234,2]
[340006068,1728323431699,-1182.71091713,0.00010234,2]
[340006069,1728323431710,-607.27361454,0.00010234,2]
[340006070,1728323431722,-9760.4042737,0.00010234,2]
[340006071,1728323431732,-278.29,0.0001026,2]
[340006072,1728323431741,-3572.06,0.00010337,2]
[340006073,1728323431751,-250.0,0.00010365,2]
[340006074,1728323431760,-170.51932731,0.00010456,2]
[340006075,1728323431777,-200.9,0.00010556,2]
[340006076,1728323431869,-151.0,0.00010567,2]
[340006077,1728323431879,-526.18,0.00010702,2]
[340006078,1728323431888,-67.05223429,0.00010799,2]
[340006079,1728323431899,-82.94776571,0.00010799,2]
[340006080,1728323431908,-1000.0,0.000108,2]
[340006081,1728323431918,-7594.8912,0.000108,2]
[340006082,1728323431927,-494.78,0.000108,2]
[340006083,1728323431936,-1448.4206,0.000108,2]
[340006084,1728323431946,-550.9499,0.000108,2]
[340006086,1728323431955,-296.19835911,0.0001089,2]
[340006088,1728323431964,-499.99,0.00010898,2]
[340006089,1728323431974,-3764.54,0.00010898,2]
[340006091,1728323431983,-8255.27485083,0.00010899,2]
[340006092,1728323431992,-299.99,0.00010899,2]
[340006093,1728323432001,-314.8176,0.000109,2]
[340006094,1728323432017,-500.0,0.000109,2]
[340006095,1728323432026,-23622.30687689,0.000109,2]
[340006096,1728323432060,-638.67272336,0.000109,2]
[340006097,1728323432071,-3084.0,0.000109,2]
[340006098,1728323432083,-8836.79569975,0.000109,2]
[340006099,1728323432093,-100000.0,0.000109,2]
[340006100,1728323432102,-182258.10874779,0.000109,2]
[340006101,1728323432113,-377.39865896,0.000109,2]
[340006102,1728323432124,-3030.64996409,0.000109,2]
[340006103,1728323432135,-4268.90659672,0.000109,2]
[340006104,1728323432146,-8228.25869865,0.000109,2]
[340006105,1728323432172,-661.83076547,0.000109,2]
[340006106,1728323432201,-277.61067269,0.000109,2]
[340006107,1728323432212,-1096.73776496,0.000109,2]
[340006108,1728323432224,-1238.04,0.000109,2]
[340006109,1728323432235,-600.09293378,0.000109,2]
[340006110,1728323432245,-18986.91999953,0.000109,2]
[340006111,1728323432256,-23975.44519736,0.000109,2]
[340006112,1728323432265,-158.59352518,0.000109,2]
[340006113,1728323432275,-552.5,0.000109,2]
[340006114,1728323432284,-173.34850153,0.000109,2]
[340006115,1728323432293,-268.91864884,0.000109,2]
[340006116,1728323432302,-315.1179724,0.000109,2]
[340006117,1728323432312,-735.44604489,0.000109,2]
[340006118,1728323432321,-1602.38654506,0.000109,2]
[340006119,1728323432330,-500.0,0.00010958,2]
[340006120,1728323432339,-500.0,0.00010958,2]
[340006121,1728323432348,-304.14536991,0.00010958,2]
[340006122,1728323432358,-165.61,0.00010959,2]
[340006123,1728323432367,-250.0,0.00010959,2]
[340006124,1728323432376,-175.08,0.00010959,2]
[340006125,1728323432386,-158.36,0.00010959,2]
[340006126,1728323432395,-242.03,0.00010959,2]
[340006127,1728323432404,-168.75603806,0.0001099,2]
[340006128,1728323432414,-583.84962411,0.00010997,2]
[340006129,1728323432423,-500.0,0.00010999,2]
[340006130,1728323432432,-321.97636568,0.00010999,2]
[340006131,1728323432441,-12347.79706642,0.00011,2]
[340006132,1728323432453,-7874.3179034,0.00011,2]
[340006133,1728323432464,-3273.10212446,0.00011,2]
[340006134,1728323432475,-454.92529219,0.00011,2]
[340006135,1728323432486,-535.511,0.00011,2]
[340006136,1728323437674,-319.24299861,0.00011,2]
[340006137,1728323437686,-6736.76284974,0.00011,2]
[340006138,1728323437702,-440.1604635,0.00011,2]
[340006139,1728323437718,-843.77773422,0.00011,2]
[340006140,1728323437729,-858.216,0.00011,2]
[340006141,1728323437740,-15034.0569413,0.00011,2]
[340006142,1728323437770,-877.11585098,0.00011,2]
[340006143,1728323437782,-193193.85546065,0.00011,2]
[340006144,1728323437829,-382.08478909,0.00011,2]
[340006145,1728323437841,-13157.2710806,0.00011,2]
[340006146,1728323437852,-526.17759152,0.00011,2]
[340006147,1728323437864,-4010.10564,0.00011,2]
[340006148,1728323437875,-3002.82669009,0.00011,2]
[340006149,1728323437887,-521.17192969,0.00011,2]
[340006150,1728323437898,-20820.71753437,0.00011,2]
[340006151,1728323437910,-247639.96678085,0.00011,2]
[340006152,1728323437921,-669.980028,0.00011,2]
[340006153,1728323437933,-1355.02815999,0.00011,2]
[340006154,1728323437945,-1698.91124941,0.00011,2]
[340006155,1728323437956,-290.08119832,0.00011,2]
[340006156,1728323437967,-38768.20447342,0.00011,2]
[340006157,1728323438038,-10015.67603892,0.00011,2]
[340006158,1728323438050,-2704.63123454,0.00011,2]
[340006159,1728323438063,-5811.84764848,0.00011,2]
[340006160,1728323438075,-24059.66385186,0.00011,2]
[340006161,1728323438086,-396.58315512,0.00011,2]
[340006162,1728323438099,-441.66001173,0.00011,2]
[340006163,1728323438110,-932.219486,0.00011,2]
[340006164,1728323438125,-325.00364139,0.00011,2]
[340006165,1728323438136,-5314.22404625,0.00011,2]
[340006166,1728323438147,-775.44461026,0.00011,2]
[340006167,1728323438159,-13346.76716289,0.00011,2]
[340006168,1728323438170,-480.0068938,0.00011,2]
[340006169,1728323438181,-14278.83820164,0.00011,2]
[340006267,1728323440206,-129493.43830299,0.00011,2]
[340006268,1728323440217,-41799.56504663,0.00011,2]
[340006269,1728323440229,-252166.06130074,0.00011,2]
[340006270,1728323440239,-2821.15694343,0.00011,2]
[340006272,1728323440261,-3184.3,0.00011,2]
[340006286,1728323442731,-900.0,0.00011,2]
[340006301,1728323445643,-437604.05476193,0.00011,2]
[340006302,1728323445702,-254.724,0.00011,2]
[340006303,1728323445869,-223268.38932838,0.00011,2]
[340006304,1728323445881,-374358.13046136,0.00011,2]
[340006305,1728323445892,-2059.33678768,0.00011,2]
[340006318,1728323535314,8918.1,0.0001016,2]
[340006319,1728323931859,484.57,8.655e-05,2]
[340006320,1728324349192,150.0,9.888e-05,2]
[340006321,1728324384401,6066.2719035,0.0001,2]
[340006324,1728324464225,460.34,8.386e-05,2]
[340006325,1728324480472,1466.786944,0.00010232,2]
[340006334,1728324579954,1900.0,0.000105,3]
[340006335,1728324582054,3900.0,0.000106,3]
[340006336,1728324584349,5900.0,0.000107,3]
[340006337,1728324586304,7800.0,0.000108,3]
[340006338,1728324588421,9800.0,0.000109,3]
[340006339,1728324631958,-250.0,0.00010284,2]
[340006340,1728324631970,-300.0,0.0001033,2]
[340006341,1728324631983,-23900.0,0.00010331,2]
[340006342,1728324632001,-250.0,0.0001034,2]
[340006343,1728324632015,-200.0,0.00010459,2]
[340006344,1728324632031,-7159.10387429,0.00010581,2]
[340006345,1728324632047,-1000.0,0.00010581,2]
[340006346,1728324632065,-460.34,0.0001065,2]
[340006347,1728324632081,-900.0,0.00010699,2]
[340006348,1728324632095,-1003.9748,0.000107,2]
[340006349,1728324632111,-401.94,0.000107,2]
[340006350,1728324632124,-262.1817,0.000107,2]
[340006351,1728324632139,-499.99,0.000107,2]
[340006352,1728324632156,-150.0,0.00010799,2]
[340006353,1728324632174,-1475.3221,0.000108,2]
[340006354,1728324632190,-1221.3552,0.000108,2]
[340006355,1728324632201,-5307.79233487,0.000108,2]
[340006356,1728324632220,-413.49866513,0.000108,2]
[340006357,1728324632234,-588.9124,0.000108,2]
[340006358,1728324632249,-2122.6584,0.000108,2]
[340006359,1728324632264,-161246.4158,0.000108,2]
[340006360,1728324632278,-6130.863,0.000108,2]
[340006361,1728324632291,-174.82,0.00010855,2]
[340006362,1728324632305,-150.0,0.0001089,2]
[340006363,1728324632318,-8148.47100615,0.00010899,2]
[340006364,1728324632331,-152.79080492,0.000109,2]
[340006365,1728324632344,-3386.27557811,0.000109,2]
[340006366,1728324632357,-5217.3877,0.000109,2]
[340006367,1728324632370,-158.59352518,0.000109,2]
[340006368,1728324632384,-173.34850151,0.000109,2]
[340006369,1728324632398,-210.07864826,0.000109,2]
[340006370,1728324632411,-179.27909922,0.000109,2]
[340006371,1728324632428,-200.6907088,0.000109,2]
[340006372,1728324632441,-162.3,0.00010959,2]
[340006373,1728324632455,-176.25,0.00010959,2]
[340006374,1728324632469,-4079.03,0.00010959,2]
[340006375,1728324632482,-500.0,0.00010959,2]
[340006376,1728324632497,-220.47,0.00010959,2]
[340006377,1728324632511,-1000.0,0.00010999,2]
[340006378,1728324632524,-500.0,0.00010999,2]
[340006379,1728324632537,-180.86754893,0.00010999,2]
[340006380,1728324632550,-8782.99861376,0.00011,2]
[340006383,1728324638033,-250.0,0.00010959,2]
[340006384,1728324638042,-5174.56309898,0.00011,2]
[340006385,1728324638053,-1986.9779909,0.00011,2]
[340006386,1728324638064,-44673.67155473,0.00011,2]
[340006390,1728324639937,-3717563.96662098,0.00011,2]
[340006391,1728324639947,-127806.48509408,0.00011,2]
[340006392,1728324639957,-250.0,0.00011,2]
[340006393,1728324639967,-5264.924488,0.00011234,2]
[340006394,1728324639977,-15406.8998034,0.00011234,2]
[340006395,1728324639986,-57565.6416475,0.00011242,2]
[340006396,1728324639996,-161.13,0.0001129,2]
[340006397,1728324640006,-161.13,0.00011301,2]
[340006398,1728324640015,-161.13,0.00011313,2]
[340006399,1728324640025,-161.13,0.00011324,2]
[340006400,1728324640034,-161.13,0.00011335,2]
[340006401,1728324640044,-161.13,0.00011347,2]
[340006402,1728324640053,-420.0,0.00011359,2]
[340006403,1728324640062,-176.25,0.00011507,2]
[340006404,1728324640072,-2751.0,0.00011507,2]
[340006405,1728324640081,-257.85955092,0.000119,2]
[340006406,1728324640090,-1000.0,0.00011904,2]
[340006407,1728324640100,-229.31,0.00012033,2]
[340006408,1728324640109,-176.25,0.00012055,2]
[340006409,1728324640119,-180.0,0.00012055,2]
[340006410,1728324640128,-587.0,0.00012491,2]
[340006411,1728324640137,-176.25,0.00012603,2]
[340006412,1728324640146,-300.0,0.00012877,2]
[340006413,1728324640155,-4512.90561113,0.000129,2]
[340006414,1728324640165,-460.34,0.00012914,2]
[340006415,1728324640174,-300.0,0.00013,2]
[340006416,1728324640183,-176.25,0.00013151,2]
[340006417,1728324640192,-1000.0,0.00013227,2]
[340006418,1728324640202,-1467.76,0.00013425,2]
[340006419,1728324640211,-167.787,0.00013607,2]
[340006420,1728324640221,-450.171,0.00013624,2]
[340006421,1728324640230,-2345.48,0.00013699,2]
[340006422,1728324640240,-200.0,0.00013699,2]
[340006423,1728324640249,-500.0,0.00013699,2]
[340006424,1728324640259,-6935.47,0.000137,2]
[340006425,1728324640269,-6935.47,0.000137,2]
[340006426,1728324640278,-6935.47,0.000137,2]
[340006427,1728324640287,-6935.47,0.000137,2]
[340006428,1728324640296,-6935.47,0.000137,2]
[340006429,1728324640306,-493.0,0.00013735,2]
[340006430,1728324640315,-300.0,0.00013799,2]
[340006431,1728324640324,-1796.63,0.000138,2]
[340006432,1728324640333,-195314.952729,0.000138,3]
[340006433,1728324640342,-270151.938475,0.000139,3]
[340006434,1728324640352,-1652.07,0.00013973,2]
[340006435,1728324640361,-300.0,0.00013999,2]
[340006436,1728324640370,-180915.31547836,0.00014,4]
[340006438,1728324640380,-545.0,0.00014024,2]
[340006440,1728324640389,-13514.0,0.00014248,2]
[340006442,1728324640399,-1149.0,0.00014248,2]
[340006443,1728324640408,-150.0,0.00014248,2]
[340006445,1728324640420,-5877.0,0.00014248,2]
[340006447,1728324640429,-1082.0,0.00014248,2]
[340006449,1728324640438,-8148.47100606,0.00014389,2]
[340006451,1728324640447,-1000.0,0.0001455,2]
[340006452,1728324640456,-227.0,0.000147,2]
[340006454,1728324640466,-5136.0,0.00015,2]
[340006455,1728324640476,-704.0,0.00015,2]
[340006456,1728324640485,-350.0,0.00015,2]
[340006457,1728324640496,-150.0,0.00015068,2]
[340006458,1728324640505,-460.34,0.00015177,2]
[340006459,1728324640514,-1000.0,0.000154,2]
[340006460,1728324640523,-9525.93263034,0.00015566,2]
[340006461,1728324640533,-5000.0,0.00015566,2]
[340006462,1728324640542,-1000.0,0.00015872,2]
[340006463,1728324640551,-1000.0,0.000159,2]
[340006464,1728324640562,-151.44,0.00016438,2]
[340006465,1728324640572,-150.71,0.00016438,2]
[340006466,1728324640581,-150.0,0.00016438,2]
[340006467,1728324640684,-400.0,0.00017,2]
[340006468,1728324640696,-167.82,0.00017204,2]
[340006469,1728324640705,-13514.0,0.00017248,2]
[340006470,1728324640714,-1149.0,0.00017248,2]
[340006471,1728324640724,-150.0,0.00017248,2]
[340006472,1728324640733,-5877.0,0.00017248,2]
[340006473,1728324640742,-1082.0,0.00017248,2]
[340006474,1728324640751,-150.0,0.00017322,2]
[340006475,1728324640760,-150.0,0.00017322,2]
[340006476,1728324640769,-170.124,0.00017322,2]
[340006477,1728324640779,-150.301,0.00017322,2]
[340006478,1728324640788,-264.523,0.00017322,2]
[340006479,1728324640797,-250.0,0.00017322,2]
[340006480,1728324640806,-150.0,0.00017322,2]
[340006481,1728324640815,-626.0,0.00017322,2]
[340006482,1728324640825,-811.0,0.00017322,2]
[340006483,1728324640835,-449.0,0.00017322,2]
[340006484,1728324640844,-1297.0,0.00017322,2]
[340006485,1728324640853,-559.0,0.00017322,2]
[340006486,1728324640862,-150.0,0.00017322,2]
[340006487,1728324640871,-934.0,0.00017322,2]
[340006488,1728324640881,-1906.0,0.00017322,2]
[340006489,1728324640890,-554.0,0.00017322,2]
[340006490,1728324640899,-3353.0,0.00017322,2]
[340006491,1728324640908,-808.0,0.00017322,2]
[340006492,1728324640917,-1910.0,0.00017322,2]
[340006493,1728324640926,-460.34,0.00017441,2]
[340006494,1728324640935,-220.47,0.00017592,2]
[340006495,1728324640944,-1000.0,0.00017748,2]
[340006496,1728324640953,-1000.0,0.00017748,2]
[340006497,1728324640962,-1000.0,0.00017748,2]
[340006498,1728324640977,-1000.0,0.00017748,2]
[340006499,1728324640986,-1000.0,0.00017748,2]
[340006500,1728324640995,-1000.0,0.00017748,2]
[340006501,1728324641004,-1000.0,0.00017748,2]
[340006502,1728324641013,-1000.0,0.00017748,2]
[340006503,1728324641023,-510.1450241,0.00017748,2]
[340006504,1728324641033,-1000.0,0.00017748,2]
[340006505,1728324641042,-1000.0,0.00017748,2]
[340006506,1728324641051,-1000.0,0.00017748,2]
[340006507,1728324641061,-1000.0,0.00017748,2]
[340006508,1728324641070,-1000.0,0.00017748,2]
[340006509,1728324641079,-1000.0,0.00017748,2]
[340006510,1728324641089,-1000.0,0.00017748,2]
[340006511,1728324641098,-1086.49506066,0.00017748,2]
[340006512,1728324641107,-8148.47100606,0.00018078,2]
[340006513,1728324641116,-167.82,0.0001815,2]
[340006514,1728324641125,-150.71,0.00018493,2]
[340006515,1728324641134,-1796.63,0.000185,2]
[340006516,1728324641143,-158.36,0.00018836,2]
[340006517,1728324641153,-450.0,0.00019,2]
[340006518,1728324641162,-167.82,0.00019097,2]
[340006519,1728324641172,-460.34,0.00019705,2]
[340006520,1728324641180,-92716.12077538,0.0002,2]
[340006521,1728324641190,-167.82,0.00020043,2]
[340006522,1728324641199,-150.0,0.00020091,2]
[340006523,1728324641208,-150.0,0.00020094,2]
[340006524,1728324641217,-150.0,0.00020095,2]
[340006525,1728324641227,-150.0,0.00020097,2]
[340006526,1728324641236,-150.0,0.00020099,2]
[340006527,1728324641244,-150.0,0.00020104,2]
[340006528,1728324641254,-150.0,0.00020119,2]
[340006529,1728324641263,-150.0,0.00020119,2]
[340006530,1728324641273,-150.0,0.00020122,2]
[340006531,1728324641282,-150.0,0.00020125,2]
[340006532,1728324641291,-150.0,0.00020136,2]
[340006533,1728324641300,-150.0,0.0002014,2]
[340006534,1728324641309,-150.0,0.00020143,2]
[340006535,1728324641318,-150.0,0.00020148,2]
[340006536,1728324641327,-150.0,0.00020151,2]
[340006537,1728324641336,-150.0,0.00020154,2]
[340006538,1728324641345,-150.0,0.00020155,2]
[340006539,1728324641354,-150.0,0.00020159,2]
[340006540,1728324641363,-150.0,0.00020159,2]
[340006541,1728324641372,-150.0,0.00020159,2]
[340006542,1728324641381,-150.0,0.00020164,2]
[340006543,1728324641391,-150.0,0.00020165,2]
[340006544,1728324641400,-150.0,0.00020166,2]
[340006545,1728324641409,-150.0,0.00020172,2]
[340006546,1728324641422,-150.0,0.00020177,2]
[340006547,1728324641431,-150.0,0.00020177,2]
[340006548,1728324641440,-150.0,0.00020178,2]
[340006549,1728324641450,-150.0,0.0002018,2]
[340006550,1728324641459,-150.0,0.00020181,2]
[340006551,1728324641470,-150.0,0.00020183,2]
[340006552,1728324641479,-150.0,0.00020187,2]
[340006553,1728324641489,-150.0,0.00020189,2]
[340006554,1728324641500,-150.0,0.00020191,2]
[340006555,1728324641511,-150.0,0.00020191,2]
[340006556,1728324641520,-150.0,0.00020194,2]
[340006557,1728324641529,-150.0,0.00020195,2]
[340006558,1728324641537,-150.0,0.00020195,2]
[340006559,1728324641546,-150.0,0.00020199,2]
[340006560,1728324641556,-150.0,0.00020199,2]
[340006561,1728324641565,-313.995068,0.000202,2]
[340006562,1728324641574,-150.0,0.000202,2]
[340006563,1728324641583,-150.0,0.000202,2]
[340006564,1728324641592,-150.0,0.000202,2]
[340006565,1728324641601,-150.0,0.00020201,2]
[340006566,1728324641611,-150.0,0.00020204,2]
[340006567,1728324641620,-150.0,0.00020204,2]
[340006568,1728324641629,-150.0,0.00020206,2]
[340006569,1728324641638,-150.0,0.00020214,2]
[340006570,1728324641649,-150.0,0.00020216,2]
[340006571,1728324641658,-150.0,0.00020217,2]
[340006572,1728324641667,-150.0,0.00020224,2]
[340006573,1728324641677,-150.0,0.00020229,2]
[340006574,1728324641686,-150.0,0.00020229,2]
[340006575,1728324641696,-150.0,0.0002023,2]
[340006576,1728324641705,-150.0,0.0002023,2]
[340006577,1728324641714,-150.0,0.00020235,2]